[Event "LEM Niedersachsen-A-Open 2025"]
[Site "Verden"]
[Date "2025.01.02"]
[Round "2.1"]
[White "Gottschalk, Siegfried"]
[Black "Laubsch, Bernd"]
[Result "0-1"]
[ECO "D85"]
[WhiteElo "1936"]
[BlackElo "2215"]
[Annotator "TA"]
[PlyCount "176"]
[EventDate "2024.12.27"]
[EventType "swiss"]
[EventCountry "GER"]
[SourceTitle "playchess.com"]
[Source "ChessBase"]
[SourceQuality "1"]
[TimeControl "40/5400+30:1800+30"]

{[%evp 19,176,40,95,43,86,31,80,75,79,79,83,30,72,59,122,75,104,29,87,5,35,43,30,31,57,16,64,70,483,483,458,452,410,304,289,160,159,161,199,113,89,0,114,0,89,112,112,112,131,0,100,20,84,79,137,0,0,0,0,0,0,0,0,0,0,0,25,24,47,53,57,0,0,0,0,0,0,0,0,0,0,0,0,0,0,0,0,0,0,0,0,0,0,0,0,0,0,-2,0,0,0,0,0,0,0,0,0,0,0,0,0,0,0,0,0,0,0,0,0,-8,-8,-73,-73,-73,-73,-29974,-29975,-29975,-29976,-29976,-29977,-29977,-29978,-29978,-29979,-29979,-29980,-29980,-29980,-29980,-29981,-29980,-29982,-29982,-29983,-29983,-29984,-29984,-29985,-29985,-29986,-29986,-29987,-29987,-29988,-29988,-29989,-29989,-29989]} 1. c4 {[%emt 0:00:03]} Nf6 {[%emt 0:00:13]} 2. Nf3 {[%emt 0:00:28]} g6 {[%emt 0:00:12]} 3. Nc3 {[%emt 0:01:16]} d5 {[%emt 0:00:02]} 4. cxd5 {[%emt 0:00:31]} Nxd5 {[%emt 0:00:02]} 5. e4 {[%emt 0:03:05]} Nxc3 {[%emt 0:00:33]} 6. bxc3 {[%emt 0:00:53]} Bg7 {[%emt 0:00:22]} 7. d4 {[%emt 0:00:21]} O-O {[%emt 0:01:00]} 8. Be2 {[%emt 0:01:19]} c5 {[%emt 0:01:09]} 9. O-O {[%emt 0:03:18]} Nc6 {[%emt 0:03:11]} 10. Be3 {[%emt 0:01:59]} Qa5 {[%emt 0:02:29]} (10... Na5 $14) 11. Qb3 {[%emt 0:10:05]} (11. dxc5 $6 Bxc3 12. Rb1 Qxa2 $11) (11. d5 $16 Nd8 12. Nd2) 11... b6 {[%emt 0:09:58]} 12. Rac1 {[%emt 0:09:03]} (12. Bb5 $16 Bd7 13. Rab1 (13. dxc5 bxc5 14. Qa4 Qxa4 $11)) 12... Bg4 {[%emt 0:14:41]} (12... Ba6 $14 13. Bxa6 Qxa6) 13. d5 $1 $16 {[%emt 0:07:20]} Nd8 {[%emt 0:04:05]} 14. h3 {[%emt 0:02:40]} Bd7 {[%emt 0:08:38]} 15. Nd2 {[%emt 0:08:54]} (15. e5 $16) 15... Nb7 {[%emt 0:02:30]} 16. f4 {[%emt 0:05:06]} b5 {[%emt 0:04:42]} (16... e6 $14) 17. Bf3 {[%emt 0:01:56]} (17. e5) 17... Rac8 {[%emt 0:04:36]} 18. a3 {[%emt 0:03:34]} (18. e5 $16) 18... a6 {[%emt 0:11:47]} (18... e5 $11) 19. Rfd1 {[%emt 0:07:51]} (19. e5 $16) 19... e5 {[%emt 0:10:08] Strongly threatening ...exf4.} 20. dxe6 {[%emt 0:11:14]} Bxe6 {[%emt 0:00:19]} 21. Qc2 {[%emt 0:00:27]} Qc7 {[%emt 0:04:31]} 22. e5 {[%emt 0:07:43]} Rfd8 {[%emt 0:02:38]} (22... Na5 $11) 23. Ne4 $14 {[%emt 0:00:32]} Bf8 $2 {[%emt 0:03:43][%mdl 8192]} (23... Rxd1+ $14 24. Rxd1 Rd8) 24. Nf6+ $18 {[%emt 0:02:34]} Kg7 {[%emt 0:00:17]} 25. Qf2 {[%emt 0:00:28]} Be7 {[%emt 0:03:18]} 26. Qh4 {[%emt 0:01:06]} h5 {[%emt 0:02:19]} 27. Qg5 {[%emt 0:02:06]} (27. g4 $18) 27... Rh8 $16 {[%emt 0:01:36]} 28. Bxh5 {[%emt 0:00:47]} (28. Nxh5+ $2 Rxh5 29. Qg3 Rh4 $19) 28... c4 {[%emt 0:00:53][%cal Ob7c5]} 29. Bf3 {[%emt 0:01:38]} (29. Bg4 $18) 29... Nc5 {[%emt 0:00:28]} 30. Bd4 {[%emt 0:01:33]} (30. Qg3 $16) 30... Kf8 {[%emt 0:00:30]} (30... Rcd8 $11) 31. Qg3 {[%emt 0:00:45]} (31. g4 $16 {and f5 should not be overlooked} Nd3 32. Kg2 Nxc1 33. Rxc1) 31... Nd3 {[%emt 0:00:29]} (31... Nb3 $11) 32. Ra1 {[%emt 0:01:00]} Rd8 {[%emt 0:01:47][%cal Od8d4] [#]} 33. Be4 $1 {[%emt 0:00:44]} Nc5 {[%emt 0:00:26]} 34. Bc2 {[%emt 0:00:34]} (34. Qe3 $16) 34... Qc8 {[%emt 0:01:35]} (34... Nb3 $11) 35. Ng4 {[%emt 0:01:49]} (35. Bf2 $16) 35... Bf5 {[%emt 0:01:25]} (35... Nb3 $11) 36. Bxf5 {[%emt 0:01:09]} Qxf5 {[%emt 0:00:49]} (36... gxf5 $142 37. Ne3 Nb3) 37. Nf6 {[%emt 0:01:29]} ({Better is} 37. Ne3 $16 Qc8 38. e6 Rxd4 39. cxd4 (39. Rxd4 Nxe6 40. Rdd1 Qb8 $16)) 37... Nd3 $11 {[%emt 0:00:42]} 38. Qf3 {[%emt 0:00:39]} Rxd4 {[%emt 0:00:45]} 39. cxd4 {[%emt 0:00:07]} Bxf6 {[%emt 0:00:04]} 40. exf6 {[%emt 0:00:15]} Qxf6 {[%emt 0:00:09]} 41. Rxd3 {[%emt 0:10:36]} cxd3 {[%emt 0:00:10]} 42. Qxd3 {[%emt 0:00:02][%mdl 4096] Endgame KQR-KQR. White is a pawn up.} Kg7 {[%emt 0:03:25][%cal Oh8d8]} 43. Rf1 {[%emt 0:03:42]} Rd8 {[%emt 0:05:10]} 44. d5 {[%emt 0:00:31]} Qd6 {[%emt 0:02:55]} 45. Rd1 {[%emt 0:07:05]} (45. Qd4+ $14 f6 (45... Kg8 46. Rd1 $11) 46. Qe3) 45... Qxf4 {[%emt 0:00:34]} 46. d6 {[%emt 0:00:56]} Qe5 {[%emt 0:10:50]} 47. Rd2 {[%emt 0:05:40]} Rd7 {[%emt 0:00:38]} 48. Rd1 {[%emt 0:00:29]} f5 {[%emt 0:01:23]} 49. Rd2 {[%emt 0:02:52]} Kf6 {[%emt 0:00:48]} 50. Kf2 {[%emt 0:00:18] Repels Qe1+} g5 {[%emt 0:03:41]} 51. g3 {[%emt 0:00:36]} Qc5+ {[%emt 0:02:44]} 52. Kg2 {[%emt 0:00:23]} Qc4 {[%emt 0:00:43]} 53. Qxc4 {[%emt 0:03:05]} bxc4 {[%emt 0:00:02] KR-KR} 54. Rd4 {[%emt 0:00:00]} (54. Rc2 {simplifies} Rxd6 55. Rxc4 Rd2+ 56. Kf3) 54... c3 {[%emt 0:02:09]} 55. Rc4 {[%emt 0:00:08]} Rxd6 {[%emt 0:00:12]} 56. Rxc3 {[%emt 0:00:00]} Ke5 {[%emt 0:01:47]} 57. Kf3 {[%emt 0:01:28]} Rd5 {[%emt 0:00:49]} 58. Ke3 {[%emt 0:00:51]} Rb5 {[%emt 0:01:22]} 59. h4 {[%emt 0:01:43]} gxh4 {[%emt 0:00:57]} 60. gxh4 {[%emt 0:00:02]} Ra5 {[%emt 0:00:17]} 61. Kf3 {[%emt 0:00:24]} Ra4 {[%emt 0:00:22]} 62. Kg3 {[%emt 0:00:06]} Rg4+ {[%emt 0:00:44]} 63. Kh3 {[%emt 0:00:12]} Rg8 {[%emt 0:00:35]} 64. Rg3 {[%emt 0:00:58]} Rd8 {[%emt 0:00:38]} 65. h5 {[%emt 0:00:34]} f4 {[%emt 0:00:20]} 66. Rb3 {[%emt 0:00:26]} Rg8 {[%emt 0:00:12]} 67. Kh4 {[%emt 0:00:37]} Ke4 {[%emt 0:00:14]} 68. Rb4+ {[%emt 0:00:11]} Kf5 {[%emt 0:00:50]} 69. Rc4 {[%emt 0:00:39]} f3 {[%emt 0:00:22]} 70. Rc5+ {[%emt 0:01:34]} (70. Rc7 $11 {keeps the balance.}) 70... Kf4 {[%emt 0:00:09] ( -> ...f2)} 71. Rc4+ {[%emt 0:00:09]} Ke3 {[%emt 0:00:13] ( -> ...Rf8)} 72. Rc6 $2 {[%emt 0:00:35][%mdl 8192]} (72. Rc3+ $17 Ke2 73. Rc2+ Ke1 74. Rc6) 72... f2 {[%emt 0:00:35]} 73. Re6+ {[%emt 0:00:11]} Kf3 {[%emt 0:01:19]} 74. Rf6+ {[%emt 0:00:03]} Kg2 {[%emt 0:00:19]} 75. h6 {[%emt 0:01:53]} f1=Q {[%emt 0:00:26]} ({Less strong is} 75... f1=B 76. Rd6 $15) 76. Rxf1 {[%emt 0:00:39]} Kxf1 {[%emt 0:00:02] KR-KPP} 77. Kh5 {[%emt 0:00:01]} Ke2 {[%emt 0:00:32]} 78. h7 {[%emt 0:00:01]} Rg1 {[%emt 0:00:25]} 79. Kh6 {[%emt 0:00:21]} Kd3 {[%emt 0:00:19]} 80. h8=Q {[%emt 0:00:03]} Rh1+ {[%emt 0:00:07]} 81. Kg7 {[%emt 0:02:35]} Rxh8 {[%emt 0:00:09]} 82. Kxh8 {[%emt 0:00:00] KP-KP} Kc4 {[%emt 0:00:25]} 83. Kg7 {[%emt 0:00:00]} Kb3 {[%emt 0:00:11]} 84. Kf6 {[%emt 0:00:00]} Kxa3 {[%emt 0:00:12]} 85. Ke5 {[%emt 0:00:00]} Kb3 {[%emt 0:00:28]} 86. Kd4 {[%emt 0:00:00] [#]} a5 $1 {[%emt 0:00:03]} 87. Kd3 {[%emt 0:00:00]} a4 {[%emt 0:00:16]} 88. Kd2 {[%emt 0:00:00]} Kb2 {[%emt 0:00:07]} 0-1

[Event "LEM Niedersachsen-A-Open 2025"]
[Site "Verden"]
[Date "2025.01.02"]
[Round "2.2"]
[White "Stotyn, Fabian"]
[Black "Belakhin, Alexander"]
[Result "1-0"]
[ECO "B12"]
[WhiteElo "2123"]
[BlackElo "1945"]
[Annotator "NA RC"]
[PlyCount "59"]
[EventDate "2024.12.27"]
[EventType "swiss"]
[EventCountry "GER"]
[SourceTitle "playchess.com"]
[Source "ChessBase"]
[SourceQuality "1"]
[TimeControl "40/5400+30:1800+30"]

1. e4 {[%emt 0:00:03]} c6 {[%emt 0:00:08]} 2. d4 {[%emt 0:00:16]} d5 {[%emt 0:00:08]} 3. e5 {[%emt 0:00:03]} c5 {[%emt 0:00:07]} 4. dxc5 {[%emt 0:00:11]} e6 {[%emt 0:00:08]} 5. Nf3 {[%emt 0:00:47]} Bxc5 {[%emt 0:00:44]} 6. Bd3 {[%emt 0:00:16]} Ne7 {[%emt 0:04:24]} 7. a3 {[%emt 0:00:45]} a6 {[%emt 0:01:23]} 8. h4 {[%emt 0:03:20]} Nd7 {[%emt 0:06:26]} 9. h5 {[%emt 0:01:28]} h6 {[%emt 0:01:11]} 10. Rh3 {[%emt 0:08:06]} Nc6 {[%emt 0:07:32]} 11. b4 {[%emt 0:01:59]} Bf8 {[%emt 0:07:09]} 12. Bb2 {[%emt 0:00:27]} b5 {[%emt 0:02:13]} 13. Nbd2 {[%emt 0:02:49]} Nb6 {[%emt 0:05:17]} 14. Nb3 {[%emt 0:06:11]} Qc7 {[%emt 0:04:01]} 15. Qe2 {[%emt 0:01:40]} Bb7 {[%emt 0:06:26]} 16. Nbd4 {[%emt 0:03:35]} Na4 {[%emt 0:03:29]} 17. O-O-O {[%emt 0:06:12]} O-O-O {[%emt 0:12:40]} 18. Nxc6 {[%emt 0:03:33]} Bxc6 {[%emt 0:03:08]} 19. Nd4 {[%emt 0:02:19]} Kb7 {[%emt 0:01:58]} 20. Nb3 {[%emt 0:03:08]} Bd7 {[%emt 0:03:19]} 21. Bd4 {[%emt 0:04:41]} Rc8 {[%emt 0:09:30]} 22. f4 {[%emt 0:01:44]} f5 {[%emt 0:03:29]} 23. g4 {[%emt 0:01:26]} Be7 {[%emt 0:03:13]} 24. gxf5 {[%emt 0:01:47]} Rhf8 {[%emt 0:04:40]} 25. Rg3 {[%emt 0:02:02]} exf5 {[%emt 0:01:02]} 26. Rg6 {[%emt 0:01:57]} Nc3 {[%emt 0:03:03]} 27. Qg2 {[%emt 0:04:32]} Nxd1 {[%emt 0:03:06]} 28. Na5+ {[%emt 0:02:12]} Ka8 {[%emt 0:02:36]} 29. Rxa6+ {[%emt 0:00:35]} Kb8 {[%emt 0:00:10]} 30. Qxd5 {[%emt 0:01:14]} 1-0

[Event "LEM Niedersachsen-A-Open 2025"]
[Site "Verden"]
[Date "2025.01.02"]
[Round "2.3"]
[White "Soellig, Martin"]
[Black "Reimer, Philip"]
[Result "1/2-1/2"]
[ECO "B25"]
[WhiteElo "1930"]
[BlackElo "2131"]
[Annotator "TA"]
[PlyCount "104"]
[EventDate "2024.12.27"]
[EventType "swiss"]
[EventCountry "GER"]
[SourceTitle "playchess.com"]
[Source "ChessBase"]
[SourceQuality "1"]
[TimeControl "40/5400+30:1800+30"]

{[%evp 11,104,0,0,-8,0,-16,-20,-22,-12,-31,-13,-25,0,-31,-23,-37,-27,-27,-20,-11,0,-33,-22,-26,-10,-9,33,22,25,-58,31,29,27,-68,-72,-94,-75,-74,-71,-64,-66,-83,-93,-141,-68,-186,-177,-193,-193,-175,-186,-182,-187,-178,-117,-164,-62,-115,-120,-114,-74,-70,-68,-241,-234,-235,-232,-204,-233,-243,-234,-218,-201,-217,215,210,194,-136,-115,-130,-134,-125,0,0,0,0,0,0,0,0,0,0,0,0,0]} 1. e4 {[%emt 0:00:02]} c5 {[%emt 0:00:09]} 2. Nc3 {[%emt 0:00:11]} Nc6 {[%emt 0:00:08]} 3. g3 {[%emt 0:00:13]} g6 {[%emt 0:00:28]} 4. Bg2 {[%emt 0:00:14]} Bg7 {[%emt 0:00:05]} 5. Nge2 {[%emt 0:00:14]} e6 {[%emt 0:00:15]} 6. d3 {[%emt 0:01:00]} d6 {[%emt 0:00:20]} 7. h3 {[%emt 0:02:34]} Nge7 {[%emt 0:00:17]} 8. Bf4 {[%emt 0:01:43]} O-O {[%emt 0:01:30]} 9. O-O {[%emt 0:01:28]} Nd4 {[%emt 0:04:53]} 10. Kh2 {[%emt 0:02:03]} Nec6 {[%emt 0:01:14]} 11. Qd2 {[%emt 0:02:18]} b5 {[%emt 0:00:49][%cal Bb7b5,Bb5b4][%mdl 32]} 12. Rae1 {[%emt 0:03:01][%cal Oe4e5]} b4 {[%emt 0:01:35]} 13. Nd1 {[%emt 0:01:24]} e5 {[%emt 0:04:38]} 14. Be3 {[%emt 0:01:30]} Qa5 {[%emt 0:05:59]} 15. Nc1 {[%emt 0:03:17]} Rb8 {[%emt 0:13:01]} 16. c3 {[%emt 0:02:43]} bxc3 {[%emt 0:00:41]} 17. bxc3 {[%emt 0:00:42]} Nb5 $1 {[%emt 0:06:46]} 18. Nb3 {[%emt 0:05:57]} Qa4 {[%emt 0:02:50]} 19. f4 $1 {[%emt 0:07:09]} exf4 {[%emt 0:11:57]} 20. Bxf4 {[%emt 0:05:02]} (20. gxf4 $11 c4 21. dxc4 Qxc4 22. f5) 20... c4 {[%emt 0:05:08]} (20... Ne5 $1 $15) 21. dxc4 $14 {[%emt 0:06:40]} Qxc4 {[%emt 0:00:13][%cal Oc6e5]} 22. Rf3 {[%emt 0:01:14]} (22. Ne3 $1 $11 Qe6 (22... Qxc3 23. Qxc3 Bxc3 24. Rc1 $14) 23. Nd5) 22... Ne5 $15 {[%emt 0:07:17]} 23. Bxe5 {[%emt 0:07:07]} Bxe5 {[%emt 0:03:04]} 24. Bf1 {[%emt 0:05:33]} Qa4 {[%emt 0:03:52]} 25. c4 {[%emt 0:01:20]} Nc7 $36 {[%emt 0:07:04][%mdl 2048] Black has some pressure.} 26. Nc3 {[%emt 0:02:56]} Qb4 {[%emt 0:02:00]} 27. Qc2 {[%emt 0:08:48]} (27. Nd4 $142) 27... Ba6 {[%emt 0:05:19] A strong pair of Bishops.} (27... Bd7 $17 28. Rb1 Qa3) 28. Nd2 {[%emt 0:00:40]} (28. Rb1 $15) 28... Ne6 $1 $19 {[%emt 0:01:37]} 29. Nd5 {[%emt 0:04:08]} Qb2 {[%emt 0:00:28]} 30. Qc1 {[%emt 0:04:56]} Qxc1 {[%emt 0:03:03]} 31. Rxc1 {[%emt 0:00:05]} Rb2 {[%emt 0:00:07][%csl LRa2,LRd2]} 32. Rf2 {[%emt 0:00:36]} Nd4 {[%emt 0:00:51]} (32... Nc5 $19 33. Rg2 Rfb8 (33... Rxa2 $2 34. Nf3 $19)) 33. Kg2 {[%emt 0:01:32]} (33. c5 $17 {is a better defense.} Bxf1 (33... Rxa2 34. Bxa6 dxc5 35. Rxc5 $11) 34. Rcxf1) 33... Bb7 {[%emt 0:04:44]} (33... f5 $19 34. exf5 Nxf5) 34. Rb1 {[%emt 0:01:09]} (34. Nf3 $1 $15 Bxd5 35. cxd5 Nxf3 36. Kxf3) 34... Rxb1 $17 {[%emt 0:00:14]} 35. Nxb1 {[%emt 0:00:05]} Bxd5 {[%emt 0:00:10]} 36. cxd5 {[%emt 0:00:39]} Rc8 {[%emt 0:00:22]} 37. Na3 $2 {[%emt 0:01:05] Repels Nc2} ({White should try} 37. Bd3 $15) 37... Rc3 $19 {[%emt 0:00:55][%csl LRa3,LRg3]} 38. Nc4 {[%emt 0:01:35]} Rxg3+ {[%emt 0:01:27]} 39. Kh1 {[%emt 0:00:13]} Nf3 {[%emt 0:02:48]} 40. Bg2 {[%emt 0:00:15]} Nh4 {[%emt 0:00:57]} 41. Nxe5 {[%emt 0:31:13]} dxe5 {[%emt 0:02:23][%mdl 4096] Endgame KRB-KRN. Black is a pawn up.} 42. Bf1 {[%emt 0:00:00]} Re3 $4 {[%emt 0:08:25][%mdl 8192]} (42... f5 $19 43. exf5 Nxf5) 43. d6 $18 {[%emt 0:00:00]} Re1 {[%emt 0:07:09][%cal Og8f8] [#]} 44. Kh2 $2 {[%emt 0:00:00]} ({Only move:} 44. Rd2 $1 $18 {Strongly threatening d7.} Rxf1+ 45. Kh2 Nf3+ 46. Kg2 Nxd2 47. d7) 44... Rxe4 $17 {[%emt 0:03:53]} 45. d7 {[%emt 0:00:00]} Rd4 {[%emt 0:00:07]} 46. Bb5 {[%emt 0:00:00] [#]} Kf8 {[%emt 0:00:50]} ({Better is} 46... Kg7 $1 $17 {[%cal Oa7a6] and ...a6! should not be overlooked} 47. Re2 h6) 47. Rc2 $11 {[%emt 0:00:00]} Ke7 $1 {[%emt 0:00:38][%cal Od4d2]} 48. Rc8 {[%emt 0:00:00]} Rd2+ {[%emt 0:00:52]} 49. Kg1 {[%emt 0:00:00]} Nf3+ {[%emt 0:02:44]} (49... Rxa2 50. d8=Q+ (50. d8=B+ Kd6 $18) 50... Ke6 51. Bd7+ Kd6 52. Bg4#) 50. Kf1 {[%emt 0:00:00]} Nh2+ {[%emt 0:00:02]} (50... Rxa2 51. d8=Q+ (51. d8=R Nd2+ 52. Ke1 Nf3+ 53. Kd1 f5 $18) 51... Ke6 52. Bd7+ Kd6 53. Bg4#) 51. Ke1 {[%emt 0:00:00]} (51. Kg1 $5 Nf3+ $8 (51... Rxa2 52. d8=Q+ Ke6 53. Bd7+ Kd6 54. Bg4#) 52. Kf1 Nh2+ (52... Rxa2 53. d8=Q+ Ke6 54. Bd7+ Kd6 55. Bg4#) 53. Ke1 Nf3+ (53... Rxa2 54. d8=Q+ Ke6 55. Bd7+ Kd6 56. Bg4#) 54. Kf1 $11) 51... Nf3+ {[%emt 0:00:01]} (51... Rxa2 52. d8=Q+ (52. d8=B+ Kd6 $16) 52... Ke6 53. Bd7+ Kd6 54. Bg4#) 52. Kf1 {[%emt 0:00:00]} Nh2+ {[%emt 0:08:29]} ({Weaker is} 52... Rxa2 53. d8=Q+ (53. d8=R Nh2+ 54. Ke1 Nf3+ 55. Kd1 f5 $16) 53... Ke6 54. Bd7+ Kd6 55. Bg4#) 1/2-1/2

[Event "LEM Niedersachsen-A-Open 2025"]
[Site "Verden"]
[Date "2025.01.02"]
[Round "2.4"]
[White "Eschholz, Enno"]
[Black "Scheffner, Jarno"]
[Result "0-1"]
[ECO "B26"]
[WhiteElo "2121"]
[BlackElo "1925"]
[Annotator "NA RC"]
[PlyCount "67"]
[EventDate "2024.12.27"]
[EventType "swiss"]
[EventCountry "GER"]
[SourceTitle "playchess.com"]
[Source "ChessBase"]
[SourceQuality "1"]
[TimeControl "40/5400+30:1800+30"]

1. e4 {[%emt 0:00:04]} c5 {[%emt 0:00:07]} 2. Nc3 {[%emt 0:00:09]} d6 {[%emt 0:00:25]} 3. g3 {[%emt 0:00:22]} Nc6 {[%emt 0:00:41]} 4. Bg2 {[%emt 0:00:08]} g6 {[%emt 0:00:34]} 5. d3 {[%emt 0:00:14]} Bg7 {[%emt 0:00:09]} 6. Be3 {[%emt 0:00:11]} Nf6 {[%emt 0:04:05]} 7. h3 {[%emt 0:01:02]} Qa5 {[%emt 0:02:26]} 8. Nge2 {[%emt 0:02:50]} Bd7 {[%emt 0:03:08]} 9. O-O {[%emt 0:00:48]} O-O {[%emt 0:01:09]} 10. Qd2 {[%emt 0:07:49]} Rfc8 {[%emt 0:01:58]} 11. f4 {[%emt 0:05:46]} b5 {[%emt 0:06:28]} 12. a3 {[%emt 0:02:08]} Rab8 {[%emt 0:00:50]} 13. g4 {[%emt 0:07:29]} h5 {[%emt 0:09:06]} 14. g5 {[%emt 0:04:11]} Nh7 {[%emt 0:00:09]} 15. f5 {[%emt 0:04:19]} Nd4 {[%emt 0:07:27]} 16. fxg6 {[%emt 0:06:34]} fxg6 {[%emt 0:00:18]} 17. Nf4 {[%emt 0:03:04]} Nf8 {[%emt 0:00:43]} 18. Qf2 {[%emt 0:00:32]} Be8 {[%emt 0:03:00]} 19. Ncd5 {[%emt 0:05:37]} Qd8 {[%emt 0:01:37]} 20. c3 {[%emt 0:07:46]} Nc6 {[%emt 0:17:32]} 21. Ne2 {[%emt 0:03:24]} Ne5 {[%emt 0:06:09]} 22. Rad1 {[%emt 0:02:40]} a5 {[%emt 0:01:40]} 23. d4 {[%emt 0:04:59]} cxd4 {[%emt 0:00:25]} 24. Bxd4 {[%emt 0:01:21]} Ne6 {[%emt 0:03:06]} 25. Nef4 {[%emt 0:10:25]} Nxg5 {[%emt 0:08:07]} 26. h4 {[%emt 0:02:00]} Ng4 {[%emt 0:00:14]} 27. Qd2 {[%emt 0:02:57]} e5 {[%emt 0:11:19]} 28. hxg5 {[%emt 0:03:21]} Bf7 {[%emt 0:05:15]} 29. Bb6 {[%emt 0:04:01]} Rxb6 {[%emt 0:00:07]} 30. Nxb6 {[%emt 0:00:11]} Qxb6+ {[%emt 0:00:03]} 31. Kh1 {[%emt 0:00:16]} exf4 {[%emt 0:03:16]} 32. Qxf4 {[%emt 0:00:28]} Bc4 {[%emt 0:00:34]} 33. Rxd6 {[%emt 0:01:26]} Qc5 {[%emt 0:00:56]} 34. e5 {[%emt 0:02:44]} 0-1

[Event "LEM Niedersachsen-A-Open 2025"]
[Site "Verden"]
[Date "2025.01.02"]
[Round "2.5"]
[White "Gehrke, Mathias"]
[Black "Weigand, Anton"]
[Result "0-1"]
[ECO "B23"]
[WhiteElo "1873"]
[BlackElo "2092"]
[Annotator "NA RC"]
[PlyCount "64"]
[EventDate "2024.12.27"]
[EventType "swiss"]
[EventCountry "GER"]
[SourceTitle "playchess.com"]
[Source "ChessBase"]
[SourceQuality "1"]
[TimeControl "40/5400+30:1800+30"]

1. e4 {[%emt 0:00:07]} c5 {[%emt 0:00:04]} 2. Nc3 {[%emt 0:00:18]} Nc6 {[%emt 0:00:23]} 3. Bb5 {[%emt 0:00:16]} Nf6 {[%emt 0:01:07]} 4. Bxc6 {[%emt 0:00:28]} dxc6 {[%emt 0:00:32]} 5. d3 {[%emt 1:31:51]} e5 {[%emt 1:30:54]} 6. Nge2 {[%emt 0:00:30]} Bd6 {[%emt 0:00:30]} 7. O-O {[%emt 0:00:30]} O-O {[%emt 0:00:30]} 8. Ng3 {[%emt 0:00:00]} Bg4 {[%emt 0:00:00]} 9. f3 {[%emt 0:00:00]} Be6 {[%emt 0:00:00]} 10. Be3 {[%emt 0:00:00]} b6 {[%emt 0:00:00]} 11. b3 {[%emt 0:00:00]} h6 {[%emt 0:00:00]} 12. Qd2 {[%emt 0:00:00]} Kh7 {[%emt 0:00:00]} 13. Kh1 {[%emt 0:00:00]} g5 {[%emt 0:00:00]} 14. Nf5 {[%emt 0:00:00]} Nh5 {[%emt 0:00:00]} 15. g3 {[%emt 0:00:00]} Qd7 {[%emt 0:00:00]} 16. Nxd6 {[%emt 0:00:00]} Qxd6 {[%emt 0:00:00]} 17. Qe2 {[%emt 0:00:00]} Rg8 {[%emt 0:00:00]} 18. Rf2 {[%emt 0:00:00]} Rg7 {[%emt 0:00:00]} 19. Raf1 {[%emt 0:00:00]} Rag8 {[%emt 0:00:00]} 20. Na4 {[%emt 0:00:00]} Nf6 {[%emt 0:00:00]} 21. Qd2 {[%emt 0:00:00]} Ne8 {[%emt 0:00:00]} 22. g4 {[%emt 0:00:00]} h5 {[%emt 0:00:00]} 23. h4 {[%emt 0:00:00]} hxg4 {[%emt 0:00:00]} 24. hxg5 {[%emt 0:00:00]} Rh8 {[%emt 0:00:00]} 25. f4 {[%emt 0:00:00]} g3 {[%emt 0:00:00]} 26. Rg2 {[%emt 0:00:00]} Kg8+ {[%emt 0:00:00]} 27. Kg1 {[%emt 0:00:00]} Rgh7 {[%emt 0:00:00]} 28. Rxg3 {[%emt 0:00:00]} Rh1+ {[%emt 0:00:00]} 29. Kf2 {[%emt 0:00:00]} R8h2+ {[%emt 0:00:00]} 30. Rg2 {[%emt 0:00:00]} Rxf1+ {[%emt 0:00:00]} 31. Kxf1 {[%emt 0:00:00]} Bh3 {[%emt 0:00:00]} 32. fxe5 {[%emt 0:00:00]} Qe6 {[%emt 0:12:30]} 0-1

[Event "LEM Niedersachsen-A-Open 2025"]
[Site "Verden"]
[Date "2025.01.02"]
[Round "2.6"]
[White "Burkhardt, Holger"]
[Black "Thomas, Jeremy"]
[Result "1/2-1/2"]
[ECO "B90"]
[WhiteElo "2092"]
[BlackElo "1935"]
[Annotator "NA RC"]
[PlyCount "80"]
[EventDate "2024.12.27"]
[EventType "swiss"]
[EventCountry "GER"]
[SourceTitle "playchess.com"]
[Source "ChessBase"]
[SourceQuality "1"]
[TimeControl "40/5400+30:1800+30"]

1. e4 {[%emt 0:00:02]} c5 {[%emt 0:00:58]} 2. Nf3 {[%emt 0:00:07]} d6 {[%emt 0:00:04]} 3. d4 {[%emt 0:00:07]} cxd4 {[%emt 0:00:05]} 4. Nxd4 {[%emt 0:00:06]} Nf6 {[%emt 0:00:03]} 5. Nc3 {[%emt 0:00:08]} a6 {[%emt 0:00:04]} 6. Nb3 {[%emt 0:00:10]} g6 {[%emt 0:05:09]} 7. Be3 {[%emt 0:00:20]} Bg7 {[%emt 0:00:07]} 8. Qd2 {[%emt 0:00:32]} O-O {[%emt 0:01:02]} 9. f3 {[%emt 0:03:53]} Nc6 {[%emt 0:00:36]} 10. O-O-O {[%emt 0:00:30]} Bd7 {[%emt 0:07:35]} 11. Kb1 {[%emt 0:00:28]} Rc8 {[%emt 0:00:23]} 12. Bh6 {[%emt 0:03:43]} Ne5 {[%emt 0:13:22]} 13. h4 {[%emt 0:07:05]} Nh5 {[%emt 0:03:06]} 14. Bxg7 {[%emt 0:04:22]} Kxg7 {[%emt 0:00:13]} 15. Qf2 {[%emt 0:03:42]} f5 {[%emt 0:04:31]} 16. exf5 {[%emt 0:14:29]} Bxf5 {[%emt 0:02:44]} 17. Nd4 {[%emt 0:08:03]} Qa5 {[%emt 0:10:16]} 18. Qe1 {[%emt 0:03:34]} Bd7 {[%emt 0:04:03]} 19. g4 {[%emt 0:03:18]} Nf4 {[%emt 0:01:58]} 20. h5 {[%emt 0:06:03]} g5 {[%emt 0:03:04]} 21. h6+ {[%emt 0:00:15]} Kh8 {[%emt 0:01:16]} 22. Qe3 {[%emt 0:09:48]} Rg8 {[%emt 0:13:44]} 23. Nb3 {[%emt 0:02:51]} Qc7 {[%emt 0:01:35]} 24. Rh2 {[%emt 0:02:09]} Be6 {[%emt 0:03:22]} 25. Ne4 {[%emt 0:12:01]} Rcf8 {[%emt 0:07:41]} 26. Nd4 {[%emt 0:11:36]} Bd7 {[%emt 0:00:57]} 27. c4 {[%emt 0:00:16]} Qb6 {[%emt 0:01:37]} 28. Rc2 {[%emt 0:00:57]} Nf7 {[%emt 0:06:21]} 29. c5 {[%emt 0:00:41]} Qd8 {[%emt 0:01:38]} 30. cxd6 {[%emt 0:00:31]} exd6 {[%emt 0:00:29]} 31. Bc4 {[%emt 0:01:15]} Rg6 {[%emt 0:01:15]} 32. Bxf7 {[%emt 0:00:18]} Rxf7 {[%emt 0:00:07]} 33. Nf5 {[%emt 0:01:27]} Bxf5 {[%emt 0:02:02]} 34. Qc3+ {[%emt 0:00:21]} Kg8 {[%emt 0:00:13]} 35. gxf5 {[%emt 0:00:10]} Rxh6 {[%emt 0:00:36]} 36. f6 {[%emt 0:00:49]} Rfxf6 {[%emt 0:01:18]} 37. Nxg5 {[%emt 0:00:09]} Rhg6 {[%emt 0:01:34]} 38. Ne4 {[%emt 0:01:18]} Rf7 {[%emt 0:00:21]} 39. Rcd2 {[%emt 0:00:56]} d5 {[%emt 0:00:31]} 40. Qb3 {[%emt 0:00:49]} Qc8 {[%emt 0:03:41]} 1/2-1/2